bitfinex-derivatives/quotes_SOLF0:USTF0_20260114
["timestamp","ask_amount","ask_price","bid_price","bid_amount"]
[1768391601028,2.98286095,143.95,143.89,2.97206286]
[1768391605440,4.7151749,143.95,143.89,2.97206286]
[1768391611939,2.98286095,143.95,143.89,2.97206286]
[1768391612138,1.73231395,143.94,143.89,2.97206286]
[1768391613948,2.9840135,143.93,143.88,6.2583]
[1768391614240,81.52,143.96,143.86,9.22439222]
[1768391614241,4.71632745,143.92,143.86,9.22439222]
[1768391615331,3.22779262,143.91,143.84,19.5991991]
[1768391615732,3.22779262,143.91,143.85,3.21513075]
[1768391616941,178.822,143.96,143.84,22.64366835]
[1768391616942,4.96010657,143.9,143.84,22.64366835]
[1768391617243,3.22779262,143.89,143.84,16.38406835]
[1768391619435,0.0482142,143.88,143.84,16.38406835]
[1768391619740,0.0482142,143.88,143.85,0.05330423]
[1768391634453,3.22779262,143.92,143.86,3.21513075]
[1768391635050,3.22779262,143.92,143.86,9.47423075]
[1768391635752,3.22779262,143.92,143.88,0.0495733]
[1768391636349,6.2565,143.93,143.88,3.26470405]
[1768391636555,9.48429262,143.93,143.88,3.26470405]
[1768391639254,9.48429262,143.93,143.88,0.0495733]
[1768391640860,3.22779262,143.91,143.88,0.0013591]
[1768391648158,3.17755357,143.89,143.84,16.38406835]
[1768391650962,9.43545357,143.89,143.84,16.38406835]
[1768391652967,9.43585357,143.88,143.84,16.38406835]
[1768391655973,6.2587,143.87,143.84,16.38406835]
[1768391658472,6.2592,143.86,143.81,3.19856709]
[1768391658772,3.17755357,143.87,143.75,260.43342435]
[1768391658773,3.17755357,143.87,143.78,2.7076245]
[1768391659172,3.17755357,143.86,143.75,162.99512435]
[1768391659376,3.17755357,143.86,143.77,2.7076245]
[1768391660672,3.17755357,143.86,143.78,2.9893047]
[1768391660873,6.26,143.84,143.78,2.9893047]
[1768391661072,3.17755357,143.86,143.78,2.9893047]
[1768391661374,3.17755357,143.86,143.8,2.9893047]
[1768391662577,3.18745383,143.88,143.8,2.9893047]
[1768391662778,6.2596,143.85,143.8,2.9893047]
[1768391662974,3.18745383,143.86,143.8,2.9893047]
[1768391666479,3.18745383,143.85,143.78,2.9893047]
[1768391667283,3.18745383,143.85,143.78,9.2519047]
[1768391668878,3.18745383,143.85,143.78,6.2626]
[1768391669277,3.18745383,143.83,143.77,2.9893047]
[1768391669482,3.18745383,143.83,143.76,6.2631]
[1768391669782,3.18745383,143.83,143.76,9.2524047]
[1768391673779,3.18745383,143.83,143.76,6.2631]
[1768391674086,3.18745383,143.82,143.74,2.9893047]
[1768391674386,3.18745383,143.78,143.71,2.9893047]
[1768391675087,3.18745383,143.78,143.72,2.9893047]
[1768391675890,3.18745383,143.78,143.72,9.2544047]
[1768391677577,3.18745383,143.78,143.73,9.35210805]
[1768391679684,3.24494315,143.8,143.73,9.35210805]
[1768391680483,3.24494315,143.8,143.74,3.08740805]
[1768391681187,3.24494315,143.8,143.75,3.08740805]
[1768391684991,81.58,143.81,143.76,3.08740805]
[1768391685385,3.24494315,143.84,143.76,3.08740805]
[1768391685587,3.24494315,143.84,143.78,9.34990805]
[1768391685990,3.24494315,143.84,143.75,3.08740805]
[1768391686591,0.0524052,143.81,143.75,3.08740805]
[1768391686797,0.0524052,143.81,143.78,0.04595624]
[1768391690790,0.0524052,143.81,143.78,3.13336429]
[1768391691096,3.24494315,143.87,143.78,3.13336429]
[1768391691492,3.24494315,143.87,143.78,3.08740805]
[1768391691890,3.24494315,143.86,143.78,3.08740805]
[1768391692294,3.24494315,143.86,143.81,0.05045524]
[1768391692799,9.50414315,143.86,143.81,0.05045524]
[1768391692993,3.24494315,143.85,143.81,0.05045524]
[1768391693708,3.29016747,143.84,143.77,6.2627]
[1768391694796,3.24494315,143.83,143.75,9.35110805]
[1768391694998,3.24494315,143.82,143.75,9.35110805]
[1768391695201,3.24494315,143.82,143.79,0.05218378]
[1768391695703,0.04546139,143.8,143.79,0.05218378]
[1768391695904,3.24494315,143.85,143.79,0.05218378]
[1768391696404,3.24494315,143.85,143.76,3.08740805]
[1768391696801,3.24494315,143.84,143.77,6.2629]
[1768391697190,3.24494315,143.84,143.79,0.0451606]
[1768391698096,3.24494315,143.83,143.79,0.0451606]
[1768391699508,3.24494315,143.85,143.79,0.0451606]
[1768391700903,9.50554315,143.83,143.79,0.0451606]
[1768391701406,3.24494315,143.82,143.79,0.0451606]
[1768391704308,9.50444315,143.86,143.79,3.13256865]
[1768391704709,91.10444315,143.86,143.79,3.13256865]
[1768391706004,84.84494315,143.86,143.79,3.13256865]
[1768391706905,84.84494315,143.86,143.81,6.2613]
[1768391707507,81.6,143.86,143.81,6.2613]
[1768391707706,81.6,143.86,143.82,0.04702045]
[1768391710005,84.77784908,143.86,143.82,0.04702045]
[1768391710402,84.77784908,143.87,143.82,0.04702045]
[1768391710812,84.77784908,143.87,143.81,3.27215431]
[1768391711002,3.17784908,143.86,143.78,5.97977881]
[1768391711207,3.17784908,143.86,143.83,0.0492453]
[1768391711720,3.17784908,143.86,143.79,9.53395431]
[1768391712009,3.17784908,143.86,143.79,3.27215431]
[1768391712906,3.17784908,143.86,143.8,6.2617]
[1768391716409,3.17784908,143.86,143.81,6.2613]
[1768391717408,3.17784908,143.86,143.73,3.27215431]
[1768391717409,3.17784908,143.82,143.73,3.27215431]
[1768391717608,3.17784908,143.78,143.7,3.27215431]
[1768391717910,3.17784908,143.78,143.71,3.27215431]
[1768391718110,3.17784908,143.78,143.74,6.2643]
[1768391718317,3.17784908,143.78,143.72,1.73364889]
[1768391718318,3.17784908,143.78,143.72,5.0058032]
[1768391718806,1.73364889,143.8,143.74,6.2644]
[1768391719804,4.8004064,143.8,143.74,6.2644]
[1768391721619,1.73364889,143.8,143.75,6.2639]
[1768391721916,84.66675751,143.82,143.75,6.2639]
[1768391722117,1.73364889,143.81,143.75,6.2639]
[1768391722613,1.73364889,143.81,143.76,6.2634]
[1768391725410,3.06675751,143.82,143.76,6.2634]
[1768391725610,4.8004064,143.82,143.76,6.2634]
[1768391727119,3.06675751,143.82,143.76,6.2634]
[1768391727321,1.73364889,143.81,143.76,6.2634]
[1768391729324,4.8004064,143.8,143.73,3.01200889]
[1768391729617,3.06675751,143.8,143.73,3.01200889]
[1768391729825,4.8004064,143.8,143.73,3.01200889]
[1768391730924,4.8004064,143.8,143.75,6.2639]
[1768391732732,1.73364889,143.78,143.7,3.01200889]
[1768391732931,1.73364889,143.78,143.72,3.01200889]
[1768391733634,1.73364889,143.78,143.73,9.27650889]
[1768391733836,3.06675751,143.79,143.73,91.19650889]
[1768391736041,9.32905751,143.79,143.73,3.01200889]
[1768391736231,9.32905751,143.79,143.61,195.0614]
[1768391736232,3.19662177,143.74,143.61,195.0614]
[1768391736432,97.44,143.75,143.55,97.5735]
[1768391736433,3.19662177,143.75,143.67,97.4928]
[1768391736633,3.19662177,143.78,143.73,1.73364889]
[1768391736939,97.3875,143.83,143.74,81.92]
[1768391736940,3.19662177,143.8,143.74,81.92]
[1768391737236,3.19662177,143.8,143.74,83.65364889]
[1768391737639,3.19662177,143.8,143.75,81.92]
[1768391737838,3.19662177,143.8,143.76,81.92]
[1768391739234,3.19662177,143.8,143.72,6.2651]
[1768391739442,3.19662177,143.79,143.73,81.92]
[1768391740941,3.19662177,143.79,143.73,89.91834889]
[1768391741840,9.45782177,143.82,143.74,6.2643]
[1768391742039,9.45782177,143.82,143.75,1.73364889]
[1768391742837,3.19662177,143.81,143.75,1.73364889]
[1768391743439,3.19662177,143.76,143.66,0.34141878]
[1768391743641,3.19662177,143.72,143.64,1.73364889]
[1768391743943,9.46252177,143.71,143.65,81.92]
[1768391744337,9.46252177,143.71,143.66,81.92]
[1768391744944,3.19662177,143.71,143.66,81.92]
[1768391745134,3.19662177,143.71,143.63,1.73364889]
[1768391745644,3.19662177,143.71,143.63,2.07506767]
[1768391746336,3.19662177,143.71,143.64,83.67364889]
[1768391747136,9.46242177,143.71,143.65,81.94]
[1768391748039,9.46242177,143.71,143.64,1.73364889]
[1768391748246,9.46242177,143.71,143.65,81.94]
[1768391748545,9.46242177,143.71,143.63,0.34141878]
[1768391748847,9.46242177,143.71,143.64,83.67364889]
[1768391750544,9.46282177,143.7,143.61,6.27]
[1768391750838,3.19662177,143.69,143.63,1.73364889]
[1768391751043,3.19662177,143.69,143.64,81.96]
[1768391751445,3.19662177,143.69,143.64,83.69364889]
[1768391752345,0.04565505,143.68,143.64,83.69364889]
[1768391752844,0.04565505,143.68,143.65,0.0461129]
[1768391754852,0.04565505,143.68,143.66,81.96]
[1768391755042,6.2662,143.7,143.66,81.96]
[1768391755750,6.2667,143.69,143.65,0.0461129]
[1768391756243,6.2667,143.69,143.65,82.0061129]
[1768391757647,6.2667,143.69,143.65,0.0461129]
[1768391757946,6.2667,143.69,143.65,81.96045785]
[1768391758147,3.19662177,143.72,143.65,81.96045785]
[1768391758943,3.19662177,143.72,143.66,71.2763]
[1768391759746,6.2662,143.7,143.66,71.2763]
[1768391760650,6.2662,143.7,143.66,60.3877]
[1768391761045,6.2662,143.7,143.65,0.00045785]
[1768391761256,9.46282177,143.7,143.65,0.00045785]
[1768391762949,6.2666,143.69,143.65,0.00045785]
[1768391765246,3.19662177,143.7,143.65,0.00045785]
[1768391766056,9.46282177,143.7,143.65,0.00045785]
[1768391766551,9.3920854,143.72,143.65,0.34873818]
[1768391766854,3.1265854,143.72,143.65,0.34873818]
[1768391767056,3.1265854,143.72,143.65,0.34828033]
[1768391767559,9.3927854,143.7,143.63,0.34828033]
[1768391767854,9.3927854,143.7,143.63,84.06192922]
[1768391768252,9.3927854,143.7,143.63,90.33102922]
[1768391768456,9.3927854,143.7,143.63,8.35102922]
[1768391768657,9.3927854,143.7,143.64,81.98]
[1768391768846,9.3927854,143.7,143.63,8.35102922]
[1768391769046,9.3927854,143.7,143.63,90.33102922]
[1768391769248,3.1265854,143.68,143.61,6.2697]
[1768391769455,3.1265854,143.68,143.61,88.2497]
[1768391769642,3.1265854,143.68,143.62,1.73364889]
[1768391770657,3.1265854,143.68,143.62,83.71364889]
[1768391770854,3.1265854,143.68,143.62,81.98]
[1768391771052,9.3936854,143.68,143.61,6.61798033]
[1768391771256,9.3936854,143.68,143.62,1.73364889]
[1768391773256,9.3936854,143.68,143.61,88.59798033]
[1768391773458,9.3936854,143.68,143.63,1.73364889]
[1768391773756,9.3936854,143.68,143.61,0.34828033]
[1768391773955,9.3936854,143.68,143.62,1.73364889]
[1768391775858,3.1265854,143.68,143.62,8.35152922]
[1768391776664,3.1265854,143.68,143.62,6.61788033]
[1768391776865,3.1265854,143.68,143.63,1.73364889]
[1768391777960,9.3935854,143.68,143.63,1.73364889]
[1768391778455,9.3935854,143.68,143.62,6.61788033]
[1768391778659,9.3935854,143.68,143.62,8.35152922]
[1768391779359,9.3935854,143.68,143.62,6.61788033]
[1768391781954,9.3935854,143.68,143.62,0.34828033]
[1768391782567,2.99036382,143.67,143.6,3.06001464]
[1768391782760,2.99036382,143.67,143.61,6.27]
[1768391782956,2.99036382,143.67,143.61,88.27]
[1768391783156,2.99036382,143.67,143.61,88.61465169]
[1768391783353,9.25786382,143.67,143.61,0.34465169]
[1768391784158,2.99036382,143.67,143.61,6.61455169]
[1768391784361,9.25736382,143.69,143.61,0.34465169]
[1768391784564,2.99036382,143.68,143.61,0.34465169]
[1768391784862,2.99036382,143.68,143.62,6.61425169]
[1768391785660,2.99036382,143.66,143.57,0.34465169]
[1768391785864,2.99036382,143.66,143.58,0.34465169]
[1768391786866,6.2683,143.65,143.58,82.34465169]
[1768391787068,2.99036382,143.66,143.59,0.34465169]
[1768391787856,2.99036382,143.66,143.6,6.61495169]
[1768391788258,2.99036382,143.66,143.6,0.34465169]
[1768391788566,9.25826382,143.66,143.6,0.34465169]
[1768391791270,9.25826382,143.66,143.6,6.61515169]
[1768391792266,9.25776382,143.68,143.61,0.34465169]
[1768391792470,2.99036382,143.68,143.61,0.34465169]
[1768391793278,6.268,143.66,143.61,0.34465169]
[1768391793572,6.268,143.66,143.6,88.2705]
[1768391794175,6.268,143.66,143.6,88.61515169]
[1768391794577,6.268,143.66,143.6,82.34465169]
[1768391796574,2.99036382,143.67,143.61,0.34361516]
[1768391796764,2.99036382,143.67,143.6,82.34361516]
[1768391797169,2.99036382,143.67,143.6,0.34361516]
[1768391797476,2.99036382,143.67,143.6,82.34361516]
[1768391798468,2.99036382,143.67,143.6,0.34361516]
[1768391798668,2.99036382,143.67,143.6,82.34361516]
[1768391798872,9.25826382,143.67,143.6,82.34361516]
[1768391799068,2.99036382,143.67,143.6,0.34361516]
[1768391799273,2.99036382,143.67,143.6,82.34361516]
[1768391799574,6.268,143.66,143.6,82.34361516]
[1768391800576,6.268,143.66,143.6,0.34361516]
[1768391800781,9.25885107,143.66,143.6,82.34361516]
[1768391801276,9.25925107,143.65,143.59,6.2706]
[1768391801776,9.25925107,143.65,143.59,6.61421516]
[1768391802377,9.25925107,143.65,143.59,82.34361516]
[1768391803278,9.25925107,143.65,143.59,0.34361516]
[1768391803479,9.25925107,143.65,143.59,82.34361516]
[1768391803877,9.25925107,143.65,143.59,0.34361516]
[1768391804074,9.25925107,143.65,143.59,82.34361516]
[1768391804778,2.99085107,143.64,143.57,0.34361516]
[1768391805776,9.25965107,143.64,143.57,6.61531516]
[1768391806277,2.99085107,143.64,143.57,0.34361516]
[1768391806578,6.2697,143.62,143.57,0.34361516]
[1768391807077,2.99085107,143.63,143.57,0.34361516]
[1768391807867,9.26005107,143.63,143.57,82.36361516]
[1768391808179,9.26005107,143.63,143.57,0.34361516]
[1768391808376,6.2692,143.63,143.57,88.63531516]
[1768391808580,6.2692,143.63,143.58,0.34361516]
[1768391810481,9.25965107,143.64,143.58,0.34361516]
[1768391813886,2.99085107,143.64,143.58,0.34361516]
[1768391814381,2.99085107,143.64,143.58,6.61491516]
[1768391815182,6.2682,143.66,143.59,0.34361516]
[1768391815183,2.99085107,143.66,143.59,0.34361516]
[1768391815486,2.99085107,143.66,143.59,3.05897811]
[1768391815685,2.99085107,143.66,143.59,85.07897811]
[1768391816283,2.99085107,143.66,143.59,3.05897811]
[1768391816477,2.99085107,143.66,143.59,85.07897811]
[1768391816788,2.99085107,143.65,143.58,88.2912]
[1768391817679,2.99085107,143.65,143.59,6.2709]
[1768391820483,2.99085107,143.64,143.55,0.34361516]
[1768391820984,2.99085107,143.64,143.57,0.34361516]
[1768391821772,9.25965107,143.64,143.57,6.61541516]
[1768391821989,2.99085107,143.63,143.55,0.34361516]
[1768391822285,2.99085107,143.63,143.55,6.61591516]
[1768391822483,2.99085107,143.63,143.55,0.34361516]
[1768391823477,2.99085107,143.63,143.55,3.05897811]
[1768391823678,2.99085107,143.63,143.57,6.2717]
[1768391824083,2.99085107,143.63,143.55,3.05897811]
[1768391824689,2.99085107,143.63,143.56,6.2722]
[1768391825189,2.99085107,143.63,143.56,6.61581516]
[1768391826991,2.99085107,143.63,143.56,9.33117811]
[1768391828486,0.04989311,143.61,143.56,9.33117811]
[1768391828789,2.99085107,143.63,143.58,0.04795926]
[1768391829987,2.99085107,143.63,143.58,6.31925926]
[1768391830194,3.04755938,143.65,143.58,0.39363057]
[1768391830580,3.04755938,143.64,143.58,0.04795926]
[1768391830787,3.04755938,143.64,143.54,0.34567131]
[1768391830989,3.04755938,143.64,143.52,1.21205789]
[1768391830990,3.04755938,143.64,143.55,3.06103426]
[1768391831293,3.04755938,143.64,143.6,0.0471979]
[1768391831487,3.04755938,143.64,143.55,3.06103426]
[1768391831681,3.04755938,143.64,143.55,0.34567131]
[1768391832689,3.04755938,143.62,143.54,8.98826295]
[1768391832896,3.04755938,143.62,143.54,2.71536295]
[1768391833097,3.04755938,143.62,143.54,3.10823216]
[1768391833298,3.04755938,143.62,143.55,0.39286921]
[1768391836494,3.04755938,143.64,143.56,0.39286921]
[1768391836691,3.04755938,143.64,143.56,3.10823216]
[1768391837695,3.04755938,143.63,143.56,3.10823216]
[1768391837890,3.04755938,143.63,143.57,0.39286921]
[1768391838997,3.04755938,143.63,143.57,6.66456921]
[1768391839399,3.04755938,143.63,143.58,1.73883051]
[1768391839709,3.04755938,143.63,143.59,1.73883051]
[1768391840196,3.09588027,143.65,143.59,1.73883051]
[1768391840700,3.09588027,143.65,143.61,1.73883051]
[1768391841000,3.09588027,143.65,143.58,0.3910571]
[1768391841304,3.09588027,143.65,143.6,1.73883051]
[1768391841797,3.09588027,143.67,143.6,1.73883051]
[1768391842900,3.09588027,143.67,143.6,8.00913051]
[1768391844699,3.09588027,143.67,143.6,6.2703]
[1768391844893,3.09588027,143.67,143.6,8.00913051]
[1768391845296,9.36338027,143.67,143.6,8.00913051]
[1768391845486,3.09588027,143.66,143.6,8.00913051]
[1768391845887,3.09588027,143.66,143.6,6.2703]
[1768391847003,3.09588027,143.66,143.59,2.12988761]
[1768391847494,3.09588027,143.66,143.59,0.3910571]
[1768391847801,3.09588027,143.66,143.6,1.73883051]
[1768391849798,3.09588027,143.66,143.6,8.00923051]
[1768391854103,3.09588027,143.66,143.6,6.2704]
[1768391857998,3.15647852,143.65,143.59,0.3910571]
[1768391859803,3.15647852,143.65,143.59,6.6619571]
[1768391861514,3.15647852,143.65,143.6,6.2704]
[1768391862203,3.15647852,143.65,143.59,2.12988761]
[1768391863810,3.15647852,143.65,143.59,8.40078761]
[1768391865806,3.15647852,143.64,143.57,6.2714]
[1768391866007,3.15647852,143.64,143.57,1.73883051]
[1768391867015,9.42577852,143.63,143.57,1.73883051]
[1768391867310,9.42577852,143.63,143.57,2.12833094]
[1768391871212,9.42577852,143.63,143.57,0.38950043]
[1768391872126,3.15647852,143.62,143.56,6.272]
[1768391872325,3.15647852,143.62,143.56,8.01083051]
[1768391872615,3.15647852,143.62,143.56,6.272]
[1768391873013,3.15647852,143.61,143.55,0.38950043]
[1768391873416,3.15647852,143.61,143.55,2.12833094]
[1768391874113,3.15647852,143.61,143.55,8.40103094]
[1768391874420,9.42557852,143.64,143.56,0.38950043]
[1768391874609,3.15647852,143.63,143.56,0.38950043]
[1768391875519,3.15647852,143.63,143.57,6.2717]
[1768391875813,3.15647852,143.65,143.58,0.38950043]
[1768391876117,3.15647852,143.65,143.59,1.73883051]
[1768391876619,3.15647852,143.65,143.58,2.12833094]
[1768391876820,3.15647852,143.65,143.59,6.2707]
[1768391877215,3.15647852,143.64,143.58,1.73883051]
[1768391877817,3.15647852,143.63,143.57,8.01023051]
[1768391878114,3.15647852,143.63,143.55,1.73883051]
[1768391878318,3.15647852,143.62,143.56,6.2722]
[1768391879626,3.15647852,143.62,143.56,8.01103051]
[1768391880024,9.42517852,143.65,143.58,1.73883051]
[1768391880219,3.15647852,143.64,143.57,2.12833094]
[1768391881825,3.15647852,143.63,143.55,2.12833094]
[1768391882623,3.15647852,143.62,143.56,6.2722]
[1768391883427,3.15647852,143.61,143.54,2.12833094]
[1768391883923,9.42677852,143.61,143.54,2.12833094]
[1768391884119,3.15647852,143.6,143.54,2.12833094]
[1768391885129,3.15647852,143.6,143.54,8.40133094]
[1768391885522,3.15647852,143.6,143.54,6.66250043]
[1768391885718,3.15583937,143.59,143.54,1.73883051]
[1768391885923,3.15583937,143.59,143.53,1.73883051]
[1768391886323,3.15583937,143.59,143.51,0.39083576]
[1768391886827,3.15583937,143.59,143.53,1.73883051]
[1768391887229,3.15583937,143.59,143.51,0.39083576]
[1768391887736,3.15583937,143.59,143.52,1.73883051]
[1768391888029,3.15583937,143.59,143.51,6.66493576]
[1768391888232,3.15583937,143.59,143.53,0.39083576]
[1768391888529,3.15583937,143.59,143.53,2.12966627]
[1768391889418,3.15583937,143.59,143.53,6.66423576]
[1768391889616,3.15583937,143.59,143.54,1.73883051]
[1768391889817,3.15583937,143.59,143.53,6.66423576]
[1768391890028,3.15583937,143.59,143.54,1.73883051]
[1768391891423,3.15583937,143.59,143.53,8.01223051]
[1768391892433,3.15583937,143.59,143.54,6.2728]
[1768391893122,4.89466988,143.63,143.54,2.12966627]
[1768391893326,3.15583937,143.62,143.54,2.12966627]
[1768391894133,3.15583937,143.62,143.56,6.2721]
[1768391899747,3.15583937,143.62,143.54,6.66383576]
[1768391901055,3.15583937,143.62,143.55,6.2727]
[1768391901954,3.1867662,143.61,143.55,6.2727]
[1768391902451,84.9467662,143.64,143.57,0.39014332]
[1768391903452,91.2157662,143.64,143.57,6.66184332]
[1768391903651,84.9467662,143.64,143.57,0.39014332]
[1768391904053,81.76,143.64,143.58,6.66144332]
[1768391904456,81.76,143.64,143.59,0.0518288]
[1768391904760,0.05256819,143.62,143.59,0.0518288]
[1768391907054,3.1867662,143.65,143.59,0.44197212]
[1768391907356,3.1867662,143.67,143.59,0.44197212]
[1768391907554,3.1867662,143.67,143.61,6.66014332]
[1768391907760,81.78,143.68,143.61,0.39014332]
[1768391908063,81.78,143.68,143.62,0.39014332]
[1768391908360,3.1867662,143.69,143.63,0.04674003]
[1768391908959,3.1867662,143.69,143.63,6.31584003]
[1768391909261,3.1867662,143.69,143.63,6.70598335]
[1768391910458,3.1867662,143.69,143.64,6.2687]
[1768391921269,3.1867662,143.69,143.63,0.04674003]
[1768391921964,3.22753656,143.66,143.59,0.38720465]
[1768391922369,3.22753656,143.66,143.61,6.27]
[1768391923776,3.22753656,143.66,143.59,6.65790465]
[1768391925077,3.22753656,143.66,143.6,6.2704]
[1768391926270,3.22753656,143.66,143.61,6.2699]
[1768391926470,84.98753656,143.68,143.61,6.65710465]
[1768391926871,3.22753656,143.67,143.61,6.65710465]
[1768391928281,3.22753656,143.67,143.64,1.0]
[1768391931383,81.76,143.68,143.64,1.0]
[1768391931683,81.76,143.68,143.62,6.65670465]
[1768391932175,5.94575323,143.7,143.63,6.2691]
[1768391932380,81.76,143.69,143.63,6.2691]
[1768391932982,84.98753656,143.69,143.63,6.2691]
[1768391933385,3.22753656,143.68,143.62,0.38720465]
[1768391934686,3.22753656,143.68,143.64,0.04479459]
[1768391941583,3.22753656,143.68,143.64,6.31329459]
[1768391941784,81.76,143.69,143.64,0.43199924]
[1768391942585,70.05080966,143.69,143.64,0.43199924]
[1768391942789,3.22753656,143.72,143.64,0.43199924]
[1768391943094,84.98753656,143.72,143.64,0.43199924]
[1768391943593,84.98753656,143.72,143.67,6.2674]
[1768391944588,0.04777422,143.71,143.67,6.2674]
[1768391944790,0.04777422,143.71,143.68,6.31237047]
[1768391944987,3.22753656,143.77,143.68,0.43267512]
[1768391945384,84.90247302,143.76,143.71,6.2656]
[1768391945588,84.90247302,143.76,143.69,0.38693882]
[1768391945892,81.76,143.76,143.73,6.2647]
[1768391946100,3.14247302,143.78,143.73,6.2647]
[1768391946488,81.76,143.79,143.74,6.2642]
[1768391946696,81.76,143.79,143.73,0.43817282]
[1768391946892,0.04945163,143.77,143.73,0.43817282]
[1768391947401,3.14247302,143.81,143.75,6.2638]
[1768391947793,3.14247302,143.81,143.76,6.2634]
[1768391948600,3.14247302,143.81,143.77,0.04718376]
[1768391958806,3.14247302,143.81,143.77,6.31018376]
[1768391965013,3.14247302,143.81,143.78,6.2626]
[1768391966714,4.87719256,143.81,143.77,0.04718376]
[1768391966912,3.29063411,143.8,143.77,0.04718376]
[1768391967713,3.29063411,143.8,143.77,6.31018376]
[1768391972017,3.29063411,143.78,143.75,6.2636]
[1768391973220,3.29063411,143.78,143.75,6.31352095]
[1768391973923,3.29063411,143.78,143.75,0.04992095]
[1768391974421,2.29063411,143.78,143.75,0.04992095]
[1768391988225,2.98381242,143.8,143.75,0.04992095]
[1768391990133,2.98381242,143.8,143.75,1.78464049]
[1768391990428,2.98381242,143.8,143.75,4.90877048]
[1768391990835,2.98381242,143.82,143.76,6.2635]
[1768391991731,2.98381242,143.82,143.78,0.05347536]
[1768392000136,2.98381242,143.82,143.76,6.2635]
[1768392000137,4.71853196,143.82,143.76,6.2635]
[1768392000435,1.73471954,143.8,143.71,4.85884953]
[1768392000640,2.98381242,143.79,143.71,4.85884953]
[1768392000840,2.98381242,143.79,143.71,3.12412999]
[1768392001137,2.98381242,143.79,143.71,4.85884953]
[1768392001332,2.98381242,143.79,143.71,3.12412999]
[1768392001537,2.98381242,143.77,143.71,3.12412999]
[1768392001931,2.98381242,143.77,143.68,3.12412999]
[1768392002337,2.98381242,143.77,143.65,195.0078]
[1768392002338,2.98381242,143.75,143.67,4.85884953]
[1768392002639,2.98381242,143.75,143.67,11.12584953]
[1768392003445,2.98381242,143.75,143.68,6.2668]
[1768392004342,2.98381242,143.75,143.69,6.2665]
[1768392006732,3.10016926,143.79,143.72,3.04763623]
[1768392007242,3.10016926,143.79,143.74,0.04436624]
[1768392008039,7.99651954,143.8,143.74,0.04436624]
[1768392008040,3.10016926,143.77,143.74,0.04436624]
[1768392008840,3.10016926,143.77,143.74,6.30876624]
[1768392009045,6.926e-05,143.77,143.74,6.30876624]
[1768392010049,0.05193346,143.78,143.74,6.30876624]
[1768392010050,0.05193346,143.78,143.75,6.2638]
[1768392010937,0.05193346,143.78,143.74,0.04436624]
[1768392012950,0.05193346,143.78,143.74,6.30876624]
[1768392013142,0.05193346,143.78,143.74,0.04436624]
[1768392013344,81.72,143.81,143.76,6.2635]
[1768392014660,81.72,143.81,143.77,0.05028166]
[1768392015143,3.10016926,143.79,143.73,3.04763623]
[1768392015352,3.10016926,143.79,143.71,3.04763623]
[1768392015951,3.10016926,143.79,143.72,1.73471954]
[1768392016150,3.10016926,143.79,143.72,4.78235577]
[1768392016447,3.10016926,143.79,143.73,3.04763623]
[1768392016744,84.82016926,143.81,143.74,4.78235577]
[1768392017840,84.82016926,143.81,143.75,6.2639]
[1768392018941,4.8348888,143.84,143.75,3.04763623]
[1768392019151,86.5548888,143.84,143.76,4.78235577]
[1768392019339,3.10016926,143.83,143.76,4.78235577]
[1768392019743,3.10016926,143.83,143.76,3.04763623]
[1768392019954,3.10016926,143.83,143.76,4.78235577]
[1768392021553,3.10016926,143.83,143.76,3.04763623]
[1768392022250,3.10016926,143.83,143.74,5.73545778]
[1768392022450,3.10016926,143.83,143.74,3.02583168]
[1768392023347,3.10016926,143.83,143.76,6.2631]
[1768392024149,3.10016926,143.83,143.77,6.263]
[1768392025648,9.36076926,143.83,143.75,9.28943168]
[1768392025858,3.0881704,143.82,143.75,9.28943168]
[1768392026055,3.0881704,143.82,143.75,3.02583168]
[1768392026256,3.0881704,143.82,143.76,6.2634]
[1768392026648,3.0881704,143.82,143.77,6.2627]
[1768392027956,3.0881704,143.82,143.75,3.02583168]
[1768392028461,3.0881704,143.82,143.78,6.2626]
[1768392029160,3.0881704,143.82,143.76,3.02583168]
[1768392029872,3.0881704,143.82,143.76,9.28903168]
[1768392030374,84.8081704,143.84,143.78,6.2626]
[1768392030759,84.8081704,143.84,143.78,9.28843168]
[1768392032680,3.0881704,143.83,143.75,3.02583168]
[1768392032872,3.0881704,143.82,143.75,3.02583168]
[1768392033867,9.3491704,143.82,143.75,9.28963168]
[1768392035375,3.14085058,143.8,143.73,9.33487305]
[1768392035671,3.14085058,143.8,143.7,3.07047305]
[1768392036267,0.04393346,143.76,143.7,3.07047305]
[1768392036477,3.18478404,143.76,143.7,3.07047305]
[1768392036674,3.18478404,143.76,143.67,3.07047305]
[1768392036872,3.14085058,143.74,143.67,3.07047305]
[1768392037175,3.14085058,143.73,143.64,3.07047305]
[1768392037569,3.14085058,143.73,143.65,3.07047305]
[1768392037770,0.04834726,143.7,143.65,3.07047305]
[1768392038882,3.14085058,143.73,143.66,9.33827305]